bitfinex/quotes_SOLUSD_20240613
["timestamp","ask_amount","ask_price","bid_price","bid_amount"]
[1718291088960,2.4852,148.88,148.84,2.4858]
[1718291089157,2.4852,148.88,148.83,2.4859]
[1718291089754,33.59925214,148.92,148.83,6.2069]
[1718291089956,2.4853,148.88,148.83,8.6928]
[1718291090273,2.4855,148.87,148.83,6.2069]
[1718291090479,4.9708,148.87,148.81,17.4216]
[1718291090666,100.0,148.92,148.81,14.9353]
[1718291090866,2.4858,148.85,148.81,14.9353]
[1718291091580,2.4858,148.85,148.81,17.4216]
[1718291091764,2.4855,148.86,148.81,17.4216]
[1718291091968,2.4857,148.85,148.81,17.4216]
[1718291092183,2.4857,148.85,148.81,14.9353]
[1718291092495,26.61,148.88,148.81,14.9353]
[1718291092684,9.9435,148.84,148.79,6.5232]
[1718291092857,2.4863,148.82,148.77,17.8688]
[1718291093060,4.9721,148.83,148.77,17.8688]
[1718291093303,2.4864,148.81,148.77,17.8688]
[1718291093584,2.4863,148.82,148.77,17.8688]
[1718291094010,33.2284,148.88,148.77,15.3819]
[1718291094011,100.0,148.87,148.77,15.3819]
[1718291094292,29.0959,148.84,148.79,2.4867]
[1718291094495,6.6184,148.88,148.77,15.3819]
[1718291094690,20.0,148.87,148.82,2.4862]
[1718291094873,2.4856,148.86,148.81,2.4863]
[1718291095389,2.4857,148.85,148.79,4.9734]
[1718291095771,2.4856,148.86,148.81,2.4863]
[1718291095983,20.0,148.87,148.81,2.4863]
[1718291096189,2.4858,148.85,148.8,2.4865]
[1718291096490,2.4858,148.84,148.8,2.4865]
[1718291096686,2.4858,148.85,148.8,2.4865]
[1718291096861,32.427,148.87,148.8,2.4865]
[1718291097062,2.4859,148.84,148.79,2.4866]
[1718291097284,2.4859,148.84,148.77,27.8169]
[1718291097285,2.4851,148.89,148.82,6.3696]
[1718291097492,7.4547,148.9,148.82,6.3696]
[1718291097668,2.4856,148.86,148.82,6.3696]
[1718291098291,4.9702,148.89,148.82,6.3696]
[1718291098590,2.4855,148.87,148.82,8.8557]
[1718291098789,2.4856,148.86,148.82,6.3696]
[1718291098969,2.4858,148.85,148.8,2.4864]
[1718291099699,2.4858,148.85,148.81,2.4863]
[1718291100267,4.9709,148.87,148.8,2.4864]
[1718291100571,2.4867,148.79,148.77,15.3819]
[1718291100880,4.9725,148.82,148.77,15.3819]
[1718291101085,2.4865,148.81,148.77,15.3819]
[1718291101267,22.79,148.81,148.77,22.8429]
[1718291101464,25.2759,148.84,148.79,2.4865]
[1718291101667,27.7618,148.84,148.77,17.8688]
[1718291101867,25.2764,148.81,148.77,15.3819]
[1718291102594,2.4868,148.79,148.77,15.3819]
[1718291102897,25.2764,148.81,148.77,15.3819]
[1718291103064,22.79,148.81,148.77,15.3819]
[1718291103392,22.79,148.78,148.74,8.8151]
[1718291103996,22.79,148.78,148.76,2.4871]
[1718291104167,2.4864,148.81,148.76,2.4871]
[1718291104372,22.79,148.8,148.76,2.4871]
[1718291104774,22.79,148.8,148.77,2.487]
[1718291105283,22.79,148.8,148.76,2.4871]
[1718291105481,25.2766,148.8,148.75,2.4873]
[1718291105890,30.2498,148.8,148.74,6.3277]
[1718291106204,22.79,148.77,148.73,16.0336]
[1718291106370,2.4877,148.74,148.69,16.3554]
[1718291106573,2.4878,148.73,148.69,16.3554]
[1718291106902,2.4879,148.72,148.69,16.3554]
[1718291107071,2.488,148.71,148.69,16.3554]
[1718291107270,2.4879,148.72,148.69,16.3554]
[1718291107980,2.4879,148.72,148.63,6.1622]
[1718291107981,2.4887,148.67,148.63,6.1622]
[1718291108183,22.79,148.67,148.63,6.1622]
[1718291108404,2.4889,148.66,148.63,6.1622]
[1718291108909,2.4889,148.66,148.62,15.4918]
[1718291109079,12.4421,148.69,148.62,15.4918]
[1718291109286,2.4895,148.63,148.59,6.1622]
[1718291109587,2.4895,148.63,148.57,15.4918]
[1718291109808,2.4895,148.63,148.57,17.9821]
[1718291110276,2.4894,148.63,148.57,17.9821]
[1718291111389,2.4895,148.62,148.57,15.4918]
[1718291111893,2.4893,148.64,148.58,2.4901]
[1718291112296,2.4894,148.63,148.57,17.9821]
[1718291112499,2.4893,148.64,148.58,2.4902]
[1718291112687,2.4895,148.63,148.57,15.6618]
[1718291112881,20.0,148.66,148.58,2.4902]
[1718291113291,2.4893,148.64,148.58,2.4902]
[1718291113483,2.4893,148.64,148.59,2.49]
[1718291113679,20.0,148.66,148.57,15.4918]
[1718291113902,2.4896,148.62,148.57,15.4918]
[1718291114219,2.4895,148.62,148.57,17.9821]
[1718291114375,2.4895,148.62,148.57,15.4918]
[1718291114706,2.4899,148.6,148.57,15.4918]
[1718291114877,2.4898,148.61,148.57,15.4918]
[1718291115305,2.49,148.6,148.57,15.4918]
[1718291115507,2.49,148.6,148.55,6.9695953]
[1718291116000,2.49,148.6,148.55,9.4602953]
[1718291116205,2.49,148.6,148.55,6.9695953]
[1718291116696,2.49,148.59,148.55,6.9695953]
[1718291116886,6.5035,148.61,148.55,0.8073953]
[1718291117083,2.4905,148.56,148.55,0.8073953]
[1718291117379,17.4339,148.56,148.55,0.8073953]
[1718291117580,2.4914,148.51,148.5,8.68302935]
[1718291117881,7.4742,148.51,148.5,8.68302935]
[1718291118089,27.4742,148.51,148.5,8.68302935]
[1718291118301,7.4763,148.47,148.4,1.0073953]
[1718291118484,2.493,148.41,148.4,1.0073953]
[1718291119005,29.1229,148.42,148.4,1.0073953]
[1718291119202,2.493,148.41,148.4,1.0073953]
[1718291119406,32.493,148.41,148.4,1.0073953]
[1718291119815,30.0,148.41,148.4,1.0073953]
[1718291120109,30.0,148.41,148.4,3.5005953]
[1718291120290,30.0,148.41,148.4,8.4870953]
[1718291120494,29.1212,148.53,148.4,16.8970953]
[1718291120694,4.9807,148.58,148.43,4.9851]
[1718291120884,8.5697,148.61,148.43,10.0]
[1718291121082,2.4899,148.6,148.53,2.4909]
[1718291122121,6.98922239,148.67,148.46,10.0]
[1718291122122,2.4884,148.69,148.56,9.9622]
[1718291122287,2.488,148.71,148.59,4.9799]
[1718291122489,2.4876,148.74,148.66,2.4887]
[1718291122703,2.4876,148.74,148.62,0.17]
[1718291122704,6.98445613,148.75,148.64,0.17]
[1718291122911,2.4879,148.72,148.65,2.4889]
[1718291123089,104.9737,148.78,148.61,6.525]
[1718291123090,6.98323837,148.74,148.61,6.525]
[1718291123299,6.98323837,148.74,148.64,0.17]
[1718291123489,26.63,148.76,148.69,2.4882]
[1718291123490,2.4873,148.76,148.69,2.4882]
[1718291123796,2.4873,148.76,148.64,0.68]
[1718291123797,2.487,148.78,148.64,0.68]
[1718291124114,2.4865,148.81,148.66,10.1255]
[1718291124288,2.4864,148.81,148.73,2.4877]
[1718291124488,29.1162,148.82,148.74,2.4875]
[1718291124691,2.4856,148.86,148.75,0.17]
[1718291124902,6.98129836,148.86,148.75,0.68]
[1718291125105,2.485,148.89,148.75,0.68]
[1718291125293,2.4848,148.91,148.82,0.17]
[1718291125486,0.8073953,148.92,148.77,0.17]
[1718291125691,100.0,148.91,148.78,2.4868]
[1718291125889,100.0,148.91,148.77,0.17]
[1718291125890,2.4857,148.85,148.77,0.17]
[1718291126088,108.2611953,148.92,148.76,0.68]
[1718291126089,0.8073953,148.92,148.76,0.68]
[1718291126501,2.4847,148.91,148.83,2.4859]
[1718291126912,2.4847,148.91,148.76,0.51]
[1718291126913,26.56,148.91,148.76,0.51]
[1718291127118,26.56,148.91,148.77,0.17]
[1718291127499,2.4853,148.88,148.81,2.4863]
[1718291127819,2.4851,148.89,148.82,2.4861]
[1718291128006,20.0,148.9,148.78,2.687953]
[1718291128207,26.56,148.91,148.76,5.4843]
[1718291128208,131.6996,148.91,148.76,0.51]
[1718291128390,26.56,148.87,148.71,15.4674]
[1718291128586,100.0,148.89,148.71,15.4674]
[1718291128587,26.56,148.83,148.71,15.4674]
[1718291128821,26.56,148.83,148.69,6.1529]
[1718291128822,104.9729,148.81,148.69,6.1529]
[1718291129026,0.17,148.78,148.69,6.1529]
[1718291129322,126.56,148.79,148.68,4.977]
[1718291129323,29.0467,148.79,148.68,4.977]
[1718291129612,26.56,148.83,148.76,2.4871]
[1718291129786,26.56,148.89,148.76,4.9744]
[1718291129988,100.0,148.87,148.75,6.182]
[1718291130185,31.5302,148.89,148.75,6.182]
[1718291130399,2.4856,148.86,148.79,2.4865]
[1718291130612,2.4856,148.86,148.75,6.182]
[1718291130613,4.9716,148.85,148.75,6.182]
[1718291130816,100.0,148.87,148.75,6.182]
[1718291131021,2.4866,148.8,148.75,6.182]
[1718291131320,29.0459,148.84,148.75,6.182]
[1718291131532,2.4866,148.8,148.75,6.182]
[1718291131821,2.4867,148.79,148.73,2.4876]
[1718291132400,2.4866,148.8,148.74,2.4875]
[1718291132612,136.5003,148.89,148.7,6.4411]
[1718291132798,2.4859,148.84,148.78,2.4868]
[1718291133121,2.486,148.83,148.77,2.487]
[1718291133490,0.17,148.84,148.7,11.4172]
[1718291133690,2.4867,148.8,148.74,2.4874]
[1718291133920,0.17,148.84,148.72,4.9757]
[1718291134096,2.4866,148.8,148.74,2.4874]
[1718291134302,24.9721,148.83,148.71,0.17]
[1718291134709,2.4865,148.8,148.74,2.4874]
[1718291134909,2.4865,148.8,148.75,2.4873]
[1718291135135,20.0,148.83,148.77,2.4869]
[1718291135419,2.4867,148.79,148.71,0.17]
[1718291135629,2.487,148.77,148.7,6.4411]
[1718291135915,2.487,148.77,148.67,25.09528987]
[1718291135916,2.4874,148.75,148.67,2.69728987]
[1718291136121,4.9742,148.77,148.68,2.4884]
[1718291136328,2.488,148.72,148.67,2.69728987]
[1718291136497,22.4875,148.74,148.68,2.4884]
[1718291136814,20.0,148.74,148.67,2.69728987]
[1718291137016,2.4879,148.72,148.67,2.69728987]
[1718291137198,2.4876,148.74,148.68,2.4885]
[1718291137396,4.973,148.81,148.64,6.0835]
[1718291137603,2.4869,148.78,148.73,2.4875]
[1718291137810,20.0,148.79,148.68,4.977]
[1718291137811,2.4872,148.76,148.68,4.977]
[1718291138028,20.0,148.79,148.72,2.4877]
[1718291138283,20.0,148.79,148.69,4.9767]
[1718291138284,20.0,148.79,148.7,4.9763]
[1718291138399,20.0,148.79,148.67,0.34]
[1718291138903,2.4872,148.76,148.7,2.4881]
[1718291139098,2.4872,148.76,148.71,2.488]
[1718291139297,2.4874,148.75,148.7,2.4881]
[1718291139709,24.9736,148.79,148.71,2.488]
[1718291139922,2.487,148.77,148.69,4.9767]
[1718291140534,22.4868,148.79,148.7,4.9762]
[1718291140745,20.0,148.79,148.72,2.4878]
[1718291140911,2.4872,148.76,148.71,2.488]
[1718291142220,2.4874,148.75,148.7,2.4882]
[1718291142421,2.4875,148.75,148.65,2.69765278]
[1718291142642,4.9747,148.76,148.65,2.69765278]
[1718291142942,2.4876,148.74,148.69,2.4883]
[1718291143119,20.0,148.77,148.66,12.4442]
[1718291143323,2.4876,148.74,148.66,12.4442]
[1718291143733,2.4876,148.74,148.68,2.4884]
[1718291143936,2.4874,148.75,148.67,4.9774]
[1718291144253,12.4374,148.75,148.64,6.0835]
[1718291144446,2.4879,148.72,148.66,2.4887]
[1718291144651,20.0,148.74,148.64,8.5727]
[1718291144957,2.4882,148.7,148.64,6.0835]
[1718291145134,20.0,148.74,148.64,6.0835]
[1718291145333,2.4876,148.74,148.69,2.4882]
[1718291145934,9.9468,148.8,148.66,9.955]
[1718291146133,2.4874,148.75,148.7,2.4881]
[1718291146343,4.9737,148.78,148.71,2.4879]
[1718291146344,2.4872,148.76,148.71,2.4879]
[1718291146557,7.4603,148.79,148.73,2.4875]
[1718291146558,2.4868,148.79,148.73,2.4875]
[1718291146855,2.4868,148.78,148.74,2.4875]
[1718291147023,6.98338994,148.81,148.72,4.9756]
[1718291147229,2.4866,148.8,148.75,2.4873]
[1718291147454,2.4867,148.79,148.74,2.4874]
[1718291147835,2.4867,148.79,148.72,4.9756]
[1718291147836,2.4876,148.74,148.69,2.4882]
[1718291148045,7.4614,148.77,148.66,0.17]
[1718291148274,2.4875,148.75,148.67,4.9774]
[1718291148553,2.4875,148.75,148.71,2.488]
[1718291148936,2.4877,148.73,148.66,12.7842]
[1718291149140,2.4876,148.74,148.69,2.4883]
[1718291149976,7.4618,148.76,148.66,0.17]
[1718291150181,29.9498,148.75,148.65,0.34]
[1718291150386,2.4878,148.73,148.68,2.4884]
[1718291150568,2.4881,148.71,148.64,11.0618]
[1718291150770,2.4884,148.69,148.62,14.9365]
[1718291150971,120.0,148.77,148.66,4.9776]
[1718291150972,2.4876,148.74,148.66,4.9776]
[1718291151203,20.0,148.75,148.65,9.9562]
[1718291151383,20.0,148.75,148.6,6.3703]
[1718291151590,2.4875,148.74,148.69,2.4882]
[1718291151797,2.4879,148.72,148.67,2.4886]
[1718291152097,2.488,148.71,148.66,2.4888]
[1718291152277,32.438,148.74,148.67,2.4887]
[1718291152278,2.4879,148.72,148.67,2.4887]
[1718291152680,2.4883,148.7,148.65,2.4889]
[1718291153789,2.4881,148.71,148.66,2.4888]
[1718291154188,2.4879,148.72,148.67,2.4887]
[1718291154495,2.488,148.71,148.67,2.4887]
[1718291154891,2.488,148.71,148.66,2.4888]
[1718291155497,2.4881,148.71,148.66,2.4887]
[1718291155694,2.4881,148.71,148.66,2.4888]
[1718291156193,2.4879,148.72,148.67,2.4886]
[1718291156491,32.4388,148.73,148.64,4.9782]
[1718291156891,2.4883,148.7,148.65,2.4889]
[1718291157190,24.9756,148.73,148.64,4.9783]
[1718291157394,2.4881,148.71,148.66,2.4888]
[1718291157901,2.4881,148.71,148.67,2.4887]
[1718291158690,2.4881,148.71,148.66,2.4888]
[1718291158910,6.98547489,148.75,148.66,0.17]
[1718291159199,2.4874,148.75,148.68,12.6123]
[1718291159387,2.4871,148.77,148.7,4.9763]
[1718291159592,2.4874,148.75,148.68,0.17]
[1718291159905,2.4877,148.73,148.65,7.4668]
[1718291160118,2.4879,148.72,148.68,2.4885]
[1718291160417,2.4879,148.72,148.67,2.4886]
[1718291160709,2.4871,148.77,148.73,2.4877]
[1718291161079,2.487,148.77,148.73,2.4877]
[1718291161297,100.0,148.8,148.66,5.1475]
[1718291161504,4.9749,148.75,148.66,5.1475]
[1718291161711,100.0,148.77,148.62,9.9581]
[1718291161903,9.9506,148.74,148.63,17.4255]
[1718291162104,12.438,148.74,148.61,2.69837888]
[1718291162306,4.9753,148.74,148.65,4.978]
[1718291162509,2.4881,148.71,148.66,2.4888]
[1718291162805,4.975,148.75,148.65,7.4668]
[1718291163010,4.975,148.75,148.61,2.69837888]
[1718291163011,2.4881,148.71,148.64,4.9783]
[1718291163187,2.4879,148.72,148.67,2.4886]
[1718291163381,24.975,148.75,148.69,2.4883]
[1718291163622,22.4875,148.75,148.7,2.4881]
[1718291163796,39.0358,148.77,148.7,2.4881]
[1718291163797,2.4876,148.74,148.7,2.4881]
[1718291164189,2.4877,148.73,148.66,12.4441]
[1718291164418,2.4883,148.7,148.66,2.4888]
[1718291164914,12.4389,148.73,148.65,2.4889]
[1718291164915,2.4884,148.69,148.65,2.4889]
[1718291165133,7.4633,148.73,148.61,10.16747888]
[1718291165134,2.4887,148.67,148.61,10.16747888]
[1718291165422,2.4884,148.69,148.62,12.4477]
[1718291165588,2.4884,148.69,148.64,2.4891]
[1718291166714,2.4888,148.67,148.63,2.4893]
[1718291166916,9.9533,148.7,148.61,7.67777888]
[1718291167120,26.6,148.73,148.67,2.4886]
[1718291167304,22.4879,148.72,148.67,2.4887]
[1718291167623,22.4879,148.72,148.67,2.4886]
[1718291167624,20.0,148.72,148.67,2.4886]
[1718291167911,8.7109,148.74,148.69,2.4882]
[1718291168217,2.488,148.72,148.67,2.4885]
[1718291168395,2.488,148.72,148.68,2.4885]
[1718291169216,2.488,148.71,148.67,2.4886]
[1718291170021,2.4877,148.73,148.68,2.4884]
[1718291170194,2.4877,148.73,148.69,2.4883]
[1718291170391,4.9747,148.76,148.66,9.9555]
[1718291170620,2.4875,148.74,148.7,2.4881]
[1718291170832,2.4873,148.76,148.71,2.4879]
[1718291171122,2.4873,148.76,148.72,2.4878]
[1718291171304,8.5247,148.77,148.73,2.4876]
[1718291171494,2.4871,148.77,148.73,2.4876]
[1718291172007,2.4871,148.77,148.72,2.4878]
[1718291172226,2.487,148.77,148.73,2.4877]
[1718291172415,2.4873,148.76,148.69,4.9766]
[1718291172731,2.4873,148.76,148.7,4.9764]
[1718291172924,2.4871,148.77,148.7,4.9762]
[1718291173112,2.4872,148.76,148.72,2.4878]
[1718291173313,2.4869,148.78,148.73,2.4876]
[1718291173908,11.0142,148.81,148.75,2.4872]
[1718291174129,11.0142,148.81,148.68,0.17]
[1718291174130,4.9731,148.8,148.71,7.4641]
[1718291174431,13.5009,148.81,148.7,2.488]
[1718291174432,9.9481,148.78,148.7,2.488]
[1718291174624,2.4873,148.76,148.71,2.4879]
[1718291174825,6.0415,148.81,148.73,2.4875]
[1718291174826,7.4596,148.8,148.73,2.4875]
[1718291175142,8.5279,148.81,148.74,4.9749]
[1718291175318,4.9722,148.83,148.76,2.4871]
[1718291175512,2.4864,148.81,148.76,2.4871]
[1718291175728,2.4864,148.81,148.77,2.487]
[1718291176410,17.4048,148.81,148.68,0.17]
[1718291176618,2.4865,148.81,148.76,2.4872]
[1718291176826,14.9165,148.83,148.73,12.4385]
[1718291176827,4.9724,148.82,148.73,12.4385]
[1718291177028,2.4866,148.8,148.76,2.4871]
[1718291177223,2.4864,148.81,148.77,2.487]
[1718291177443,32.4297,148.84,148.75,4.9746]
[1718291177626,2.4865,148.8,148.76,2.4871]
[1718291177817,2.4863,148.82,148.77,2.487]
[1718291178021,8.5675,148.85,148.76,0.17]
[1718291178221,2.4863,148.82,148.77,2.4869]
[1718291178435,4.9721,148.83,148.76,2.4871]
[1718291178634,6.0817,148.85,148.75,0.17]
[1718291178635,11.0534,148.85,148.75,0.17]
[1718291178953,2.4859,148.84,148.79,2.4865]
[1718291179146,6.0817,148.85,148.79,2.4866]
[1718291179324,2.4861,148.83,148.79,2.4866]
[1718291179728,2.4865,148.81,148.76,2.4871]
[1718291179932,2.4861,148.83,148.79,2.4866]
[1718291180140,2.4858,148.85,148.78,4.9737]
[1718291180340,2.4854,148.87,148.8,12.4326]
[1718291180543,4.9703,148.89,148.82,12.4308]
[1718291180544,2.4851,148.89,148.82,12.4308]
[1718291180745,2.4851,148.89,148.84,2.4858]
[1718291180746,2.4852,148.89,148.84,2.4858]
[1718291181043,2.485,148.89,148.85,2.4856]
[1718291181251,2.4852,148.88,148.84,2.4857]
[1718291181434,272.3238,148.91,148.84,2.4857]
[1718291181435,264.8695,148.91,148.84,2.4857]
[1718291181752,264.8695,148.91,148.79,0.17]
[1718291181753,2.4857,148.86,148.76,9.9486]
[1718291181933,2.4861,148.83,148.74,6.0696]
[1718291182248,2.4859,148.84,148.79,2.4867]
[1718291182447,4.971,148.87,148.77,13.7790458]
[1718291182643,2.4855,148.86,148.79,4.9734]
[1718291182825,20.0,148.88,148.74,6.0696]
[1718291183029,266.88650574,148.91,148.74,6.0696]
[1718291183030,2.4859,148.84,148.79,2.4865]
[1718291183227,4.9712,148.86,148.77,2.4869]
[1718291183228,12.4289,148.85,148.77,2.4869]
[1718291183447,4.9717,148.85,148.78,2.4868]
[1718291183748,4.9717,148.85,148.75,22.7261]
[1718291183749,2.4859,148.84,148.77,4.974]
[1718291184051,2.4859,148.84,148.76,9.9486]
[1718291184258,22.4855,148.86,148.81,2.4862]
[1718291184624,20.0,148.86,148.77,17.409]
[1718291184829,20.0,148.86,148.81,2.4862]
[1718291184830,2.4856,148.86,148.81,2.4862]
[1718291185243,14.9094,148.9,148.83,2.486]
[1718291185550,14.9094,148.9,148.8,4.9729]
[1718291185551,2.4851,148.89,148.84,2.4858]
[1718291185735,27.4548,148.9,148.8,9.9457]
[1718291185936,2.4853,148.88,148.83,2.4859]
[1718291186136,27.4548,148.9,148.84,2.4858]
[1718291186137,2.4851,148.89,148.84,2.4858]
[1718291186463,2.4852,148.88,148.83,2.4859]
[1718291186653,32.4245,148.9,148.83,2.4859]
[1718291186847,2.4851,148.89,148.82,12.4308]
[1718291187150,2.4852,148.88,148.84,2.4858]
[1718291187352,274.809,148.91,148.83,2.486]
[1718291187353,12.4245,148.9,148.83,2.486]
[1718291187657,2.4859,148.84,148.79,2.4866]
[1718291187855,2.4865,148.8,148.76,2.4871]
[1718291188031,2.4866,148.8,148.75,2.4873]
[1718291188232,4.9728,148.81,148.74,2.4874]
[1718291188533,14.9168,148.83,148.76,2.4871]
[1718291188734,14.9168,148.83,148.72,28.0916]
[1718291188735,2.4869,148.78,148.72,28.0916]
[1718291188934,2.4869,148.78,148.71,4.9761]
[1718291189160,7.4597,148.8,148.7,6.353]
[1718291189161,7.4603,148.79,148.7,6.353]
[1718291189334,9.9468,148.8,148.7,6.353]
[1718291189536,7.4596,148.81,148.74,2.4874]
[1718291189537,20.0,148.79,148.74,2.4874]
[1718291189744,20.0,148.79,148.69,2.69692707]
[1718291189745,2.4874,148.75,148.69,5.18512707]
[1718291189964,22.3822,148.78,148.69,2.69692707]
[1718291190136,2.4876,148.74,148.69,5.18522707]
[1718291190345,20.0,148.77,148.7,2.4881]
[1718291190656,46.55,148.79,148.71,2.4879]
[1718291190873,20.0,148.79,148.72,2.4878]
[1718291191039,20.0,148.8,148.7,7.4645]
[1718291191245,2.487,148.77,148.72,2.4877]
[1718291191449,4.9738,148.78,148.69,5.18512707]
[1718291191747,7.4613,148.77,148.69,2.69692707]
[1718291191955,2.488,148.71,148.69,2.69692707]
[1718291192132,4.9754,148.73,148.64,2.4891]
[1718291192341,2.4886,148.68,148.63,2.4893]
[1718291192541,64.0144,148.73,148.62,17.4262]
[1718291192542,46.6,148.73,148.62,17.4262]
[1718291192769,2.4879,148.72,148.63,4.9786]
[1718291192937,20.0,148.72,148.65,4.9781]
[1718291193252,7.4614,148.77,148.57,44.697]
[1718291193253,6.8578,148.78,148.58,200.0]
[1718291193441,2.4875,148.75,148.66,12.444]
[1718291193749,2.4873,148.76,148.7,2.4881]
[1718291194052,2.4876,148.74,148.69,2.4883]
[1718291194256,2.4876,148.74,148.68,2.4884]
[1718291194696,2.4874,148.75,148.69,2.4883]
[1718291194857,20.0,148.77,148.67,5.1472]
[1718291194858,2.4872,148.76,148.67,5.1472]
[1718291195056,2.4872,148.76,148.7,2.4881]
[1718291195479,9.0047,148.78,148.68,10.2936]
[1718291195679,2.4871,148.77,148.71,2.488]
[1718291195978,15.3347,148.79,148.69,4.9767]
[1718291196152,4.9733,148.8,148.7,0.51]
[1718291196348,2.4869,148.78,148.73,2.4876]
[1718291196553,7.4593,148.81,148.71,2.4879]
[1718291196554,7.4598,148.8,148.71,2.4879]
[1718291197271,2.4873,148.76,148.7,2.9981]
[1718291197477,2.4873,148.75,148.7,2.9981]
[1718291197661,2.4872,148.76,148.7,2.9981]
[1718291197864,0.17,148.8,148.68,2.4884]
[1718291198064,2.4877,148.73,148.68,2.4884]
[1718291198266,2.4876,148.74,148.69,2.4883]
[1718291198552,4.9749,148.75,148.67,6.2829]
[1718291198754,2.4881,148.71,148.66,2.4888]
[1718291199080,4.9749,148.75,148.63,9.9575]
[1718291199278,2.4879,148.72,148.67,2.4886]
[1718291199679,9.9487,148.77,148.67,2.4886]
[1718291199680,4.974,148.78,148.67,4.9774]
[1718291199896,2.487,148.77,148.72,2.4878]
[1718291200193,12.4322,148.81,148.73,2.4876]
[1718291200356,2.4868,148.79,148.74,2.4874]
[1718291201088,2.4869,148.78,148.73,2.4876]
[1718291201468,2.4867,148.79,148.74,2.4875]
[1718291201673,2.4869,148.78,148.73,2.4876]
[1718291201861,2.4869,148.78,148.71,4.976]
[1718291201862,2.487,148.77,148.72,2.4878]
[1718291202691,4.9728,148.81,148.71,5.4861]
[1718291202890,2.4868,148.79,148.74,2.4874]
[1718291203685,2.4869,148.78,148.73,2.4876]
[1718291203982,20.0,148.81,148.74,2.4875]
[1718291204289,2.4871,148.77,148.71,0.17]
[1718291204492,2.4869,148.78,148.73,2.4876]
[1718291205175,2.4869,148.78,148.74,2.4875]
[1718291205364,2.4869,148.78,148.73,2.4876]
[1718291205556,2.4869,148.78,148.71,4.9761]
[1718291205557,2.4869,148.78,148.74,2.4875]
[1718291205755,16.1811,148.84,148.73,9.9507]
[1718291205959,2.4867,148.79,148.74,2.4874]
[1718291206189,9.9457,148.81,148.72,2.4878]
[1718291206491,2.4876,148.74,148.71,15.8314]
[1718291206793,2.4874,148.75,148.7,2.4881]
[1718291206957,2.4872,148.76,148.68,13.9552]
[1718291207162,17.4075,148.79,148.71,2.488]
[1718291207363,4.9738,148.78,148.71,2.488]
[1718291207564,2.4872,148.76,148.69,5.4867]
[1718291207791,2.4874,148.75,148.71,2.488]
[1718291208295,2.4872,148.76,148.71,2.488]
[1718291208470,4.9738,148.78,148.71,2.4879]
[1718291208676,2.4875,148.74,148.7,2.4881]
[1718291208889,2.4878,148.73,148.68,6.3197]
[1718291209100,4.9747,148.76,148.67,15.7951]
[1718291209101,2.488,148.72,148.67,18.2837]
[1718291209265,2.488,148.72,148.65,14.9341]
[1718291209266,2.4883,148.7,148.65,2.489]
[1718291209595,12.439,148.73,148.64,6.3804]
[1718291209596,2.4881,148.71,148.66,2.4888]
[1718291209795,26.6,148.75,148.65,9.9558]
[1718291209796,31.575,148.75,148.65,9.9558]
[1718291209983,6.5893,148.77,148.68,9.9539]
[1718291210288,4.9749,148.75,148.65,9.9557]
[1718291210598,29.9492,148.76,148.69,2.4883]
[1718291210786,2.4876,148.74,148.69,2.4882]